[Event "7th Summer Cup 2024"]
[Site "Rhodes"]
[Date "2024.06.25"]
[Round "4.1"]
[White "Sibashvili, Giorgi"]
[Black "Papasimakopoulos, Alexandros"]
[Result "0-1"]
[ECO "A14"]
[WhiteElo "2423"]
[BlackElo "2375"]
[Annotator "RC"]
[PlyCount "137"]
[EventDate "2024.06.21"]
[EventType "swiss"]
[EventCountry "GRE"]
[SourceTitle "playchess.com"]
[Source "ChessBase"]
[SourceQuality "1"]
[TimeControl "40/5400+30:900+30"]

1. c4 {[%emt 0:00:03]} e6 {[%emt 0:13:53]} 2. g3 {[%emt 0:00:20]} d5 {[%emt 0:00:11]} 3. Bg2 {[%emt 0:00:09]} Nf6 {[%emt 0:00:16]} 4. Nf3 {[%emt 0:00:11]} Be7 {[%emt 0:00:42]} 5. O-O {[%emt 0:00:20]} O-O {[%emt 0:00:06]} 6. b3 {[%emt 0:00:05]} a5 {[%emt 0:01:05]} 7. Nc3 {[%emt 0:01:05]} c6 {[%emt 0:01:33]} 8. Bb2 {[%emt 0:01:20]} Nbd7 {[%emt 0:10:26]} 9. d4 {[%emt 0:03:41]} Rb8 {[%emt 0:03:34]} 10. a4 {[%emt 0:04:56]} b6 {[%emt 0:00:37]} 11. Nd2 {[%emt 0:05:18]} Bb7 {[%emt 0:02:32]} 12. e4 {[%emt 0:01:55]} dxe4 {[%emt 0:00:04]} 13. Ndxe4 {[%emt 0:00:54]} Nxe4 {[%emt 0:00:05]} 14. Nxe4 {[%emt 0:00:09]} Nf6 {[%emt 0:00:10]} 15. Qc2 {[%emt 0:02:43]} c5 {[%emt 0:02:38]} 16. Rad1 {[%emt 0:04:44]} Bxe4 {[%emt 0:13:26]} 17. Bxe4 {[%emt 0:00:21]} cxd4 {[%emt 0:00:36]} 18. Rxd4 {[%emt 0:18:36]} Qc7 {[%emt 0:00:20]} 19. Rfd1 {[%emt 0:00:47]} h6 {[%emt 0:01:52]} 20. Bf3 {[%emt 0:03:59]} Rfd8 {[%emt 0:00:27]} 21. Qe2 {[%emt 0:05:53]} Rxd4 {[%emt 0:00:38]} 22. Bxd4 {[%emt 0:01:25]} Rd8 {[%emt 0:00:42]} 23. Qe5 {[%emt 0:03:15]} Bd6 {[%emt 0:07:49]} 24. Qe2 {[%emt 0:04:32]} Nd7 {[%emt 0:02:25]} 25. Qb2 {[%emt 0:03:33]} Bf8 {[%emt 0:00:15]} 26. Be3 {[%emt 0:13:30]} Nc5 {[%emt 0:00:49]} 27. Rxd8 {[%emt 0:06:19]} Qxd8 {[%emt 0:00:08]} 28. Qd4 {[%emt 0:00:10]} Qc8 {[%emt 0:04:44]} 29. Bd1 {[%emt 0:00:33]} Nd7 {[%emt 0:01:27]} 30. Bc2 {[%emt 0:00:57]} Bc5 {[%emt 0:10:51]} 31. Qd3 {[%emt 0:00:06]} f5 {[%emt 0:02:11]} 32. Bd2 {[%emt 0:04:58]} Ne5 {[%emt 0:01:31]} 33. Qe2 {[%emt 0:00:14]} Bd4 {[%emt 0:03:59]} 34. Kg2 {[%emt 0:05:59]} Qc6+ {[%emt 0:00:46]} 35. f3 {[%emt 0:00:06]} g5 {[%emt 0:00:47]} 36. h3 {[%emt 0:00:27]} Kf7 {[%emt 0:04:24]} 37. Bd1 {[%emt 0:00:33]} Kf6 {[%emt 0:02:12]} 38. Kh2 {[%emt 0:00:21]} Qd6 {[%emt 0:01:09]} 39. Kg2 {[%emt 0:03:19]} Ng6 {[%emt 0:04:38]} 40. Qd3 {[%emt 0:00:00]} Ne5 {[%emt 0:00:00]} 41. Qe2 {[%emt 0:01:24]} Qc6 {[%emt 0:07:13]} 42. Kh2 {[%emt 0:01:03]} Qc7 {[%emt 0:00:14]} 43. f4 {[%emt 0:03:12]} Nf7 {[%emt 0:00:53]} 44. Qd3 {[%emt 0:03:40]} Qc5 {[%emt 0:01:15]} 45. g4 {[%emt 0:05:51]} gxf4 {[%emt 0:02:28]} 46. Bxf4 {[%emt 0:01:57]} Be5 {[%emt 0:00:35]} 47. Bxe5+ {[%emt 0:01:17]} Qxe5+ {[%emt 0:00:25]} 48. Kg2 {[%emt 0:00:13]} f4 {[%emt 0:00:43]} 49. Bc2 {[%emt 0:02:22]} Ke7 {[%emt 0:00:07]} 50. h4 {[%emt 0:00:46]} Qe1 {[%emt 0:00:22]} 51. Qf3 {[%emt 0:00:50]} Qc1 {[%emt 0:02:23]} 52. Qe4 {[%emt 0:00:35]} Qd2+ {[%emt 0:01:03]} 53. Kf1 {[%emt 0:00:19]} f3 {[%emt 0:00:50]} 54. Qxf3 {[%emt 0:00:35]} Qxc2 {[%emt 0:00:17]} 55. Qb7+ {[%emt 0:00:04]} Kf6 {[%emt 0:00:28]} 56. Qxb6 {[%emt 0:00:17]} Qd1+ {[%emt 0:00:06]} 57. Kf2 {[%emt 0:00:08]} Qd2+ {[%emt 0:01:22]} 58. Kf1 {[%emt 0:01:29]} Ne5 {[%emt 0:00:32]} 59. g5+ {[%emt 0:00:11]} hxg5 {[%emt 0:00:08]} 60. hxg5+ {[%emt 0:00:03]} Kf5 {[%emt 0:00:15]} 61. Qf2+ {[%emt 0:01:25]} Qxf2+ {[%emt 0:00:10]} 62. Kxf2 {[%emt 0:00:01]} Kxg5 {[%emt 0:01:42]} 63. Ke3 {[%emt 0:00:13]} Nc6 {[%emt 0:00:08]} 64. Ke4 {[%emt 0:00:41]} Kf6 {[%emt 0:00:36]} 65. c5 {[%emt 0:00:09]} Nb4 {[%emt 0:00:40]} 66. Kd4 {[%emt 0:00:23]} e5+ {[%emt 0:00:13]} 67. Kc4 {[%emt 0:00:05]} e4 {[%emt 0:00:06]} 68. c6 {[%emt 0:01:04]} Nxc6 {[%emt 0:00:08]} 69. Kd5 {[%emt 0:00:04]} 0-1

[Event "7th Summer Cup 2024"]
[Site "Rhodes"]
[Date "2024.06.25"]
[Round "4.2"]
[White "Kotronias, Vasilios"]
[Black "Budisavljevic, Luka"]
[Result "1/2-1/2"]
[ECO "C70"]
[WhiteElo "2415"]
[BlackElo "2468"]
[Annotator "TA"]
[PlyCount "153"]
[EventDate "2024.06.21"]
[EventType "swiss"]
[EventCountry "GRE"]
[SourceTitle "playchess.com"]
[Source "ChessBase"]
[SourceQuality "1"]
[TimeControl "40/5400+30:900+30"]

{[%evp 44,153,155,155,138,154,149,150,140,145,143,79,85,33,29,33,32,31,29,22,38,50,85,73,70,62,58,43,73,72,85,80,66,66,80,60,106,107,103,91,89,79,79,82,148,148,148,31,31,31,44,32,109,102,106,8,8,0,0,0,0,0,0,0,0,0,6,0,0,0,15,15,15,15,15,15,15,15,22,22,22,22,22,22,22,22,22,22,22,22,22,22,22,22,22,22,22,22,22,22,22,22,22,22,22,22,22,22,22,22,22,0]} 1. e4 {[%emt 0:00:03]} e5 {[%emt 0:01:47]} 2. Nf3 {[%emt 0:00:15]} Nc6 {[%emt 0:00:12]} 3. Bb5 {[%emt 0:00:15]} a6 {[%emt 0:00:05]} 4. Ba4 {[%emt 0:00:04]} Bc5 {[%emt 0:00:05]} 5. c3 {[%emt 0:00:06]} Nge7 {[%emt 0:00:05]} 6. d4 {[%emt 0:01:47]} exd4 {[%emt 0:00:05]} 7. cxd4 {[%emt 0:00:06]} Bb4+ {[%emt 0:00:04]} 8. Bd2 {[%emt 0:01:47]} Bxd2+ {[%emt 0:00:08]} 9. Nbxd2 {[%emt 0:00:04]} d5 {[%emt 0:00:18]} 10. e5 {[%emt 0:00:09]} O-O {[%emt 0:00:58]} 11. O-O {[%emt 0:00:59]} f6 {[%emt 0:00:24]} 12. Rc1 {[%emt 0:05:58]} fxe5 {[%emt 0:20:20]} 13. dxe5 {[%emt 0:00:09]} Bg4 {[%emt 0:03:59]} 14. h3 {[%emt 0:00:39]} Bh5 {[%emt 0:01:30]} 15. Bxc6 {[%emt 0:00:07]} Nxc6 {[%emt 0:00:28]} 16. Qb3 {[%emt 0:00:03]} Rb8 {[%emt 0:02:01]} 17. Rfe1 {[%emt 0:00:05]} Kh8 {[%emt 0:01:43]} 18. Qa3 {[%emt 0:03:58]} Qe8 {[%emt 0:10:02]} 19. e6 {[%emt 0:07:51]} Rf6 {[%emt 0:18:52]} 20. g4 {[%emt 0:05:18]} Bg6 {[%emt 0:04:27]} 21. e7 {[%emt 0:02:41]} Rf7 {[%emt 0:00:18]} 22. Ne5 {[%emt 0:11:13]} Rxe7 {[%emt 0:01:08]} 23. Nxg6+ {[%emt 0:00:08]} hxg6 {[%emt 0:00:20]} 24. Rxe7 {[%emt 0:00:17]} Qxe7 {[%emt 0:00:02]} 25. Qxe7 {[%emt 0:00:05]} Nxe7 {[%emt 0:00:07]} 26. Rxc7 {[%emt 0:00:05]} Nc6 {[%emt 0:00:50] [#]} 27. Rd7 {[%emt 0:01:00]} (27. Nf3 $142 $1) 27... Nb4 $16 {[%emt 0:02:14]} 28. a3 {[%emt 0:06:53]} (28. Nf3 $16) 28... Nd3 $14 {[%emt 0:00:03]} 29. Rxd5 {[%emt 0:00:56]} Nxb2 {[%emt 0:01:07]} 30. Rd6 {[%emt 0:00:27]} Kh7 {[%emt 0:05:27]} 31. h4 {[%emt 0:13:22]} a5 {[%emt 0:01:06]} 32. Rb6 {[%emt 0:02:07]} Nd3 {[%emt 0:05:56]} 33. Rb5 {[%emt 0:10:13]} b6 {[%emt 0:04:07]} 34. Ne4 {[%emt 0:00:09]} Kg8 {[%emt 0:01:18]} 35. f3 {[%emt 0:05:32]} a4 {[%emt 0:05:01]} 36. Kf1 {[%emt 0:01:26]} Nf4 {[%emt 0:04:19]} 37. Ng5 {[%emt 0:08:11]} Nd3 {[%emt 0:00:36]} 38. Ke2 {[%emt 0:01:02]} Nc5 {[%emt 0:01:04]} 39. Ke3 {[%emt 0:03:36]} Kf8 {[%emt 0:00:02]} (39... Na6 $14) 40. Ne4 $16 {[%emt 0:00:00]} Ne6 {[%emt 0:00:00]} 41. Nc3 {[%emt 0:10:20]} Nc7 {[%emt 0:04:14]} 42. Rg5 {[%emt 0:00:29]} Kf7 {[%emt 0:03:40]} 43. Nxa4 {[%emt 0:00:41]} b5 {[%emt 0:02:00]} (43... Ne6 $142) 44. Nc3 $16 {[%emt 0:01:13]} Ra8 {[%emt 0:00:01]} 45. Rc5 {[%emt 0:00:47]} (45. Nxb5 $16 Nxb5 46. Rxb5 Rxa3+ 47. Kf2) 45... Ne6 $14 {[%emt 0:00:08]} 46. Rxb5 {[%emt 0:00:05]} Rxa3 {[%emt 0:00:02]} 47. Rb7+ {[%emt 0:05:36]} Kf6 {[%emt 0:05:57]} (47... Ke8 $14) 48. Kd2 $16 {[%emt 0:05:13]} Nd4 {[%emt 0:00:35]} 49. f4 {[%emt 0:00:12]} (49. Ne4+ $16 Ke5 50. Re7+ (50. Rxg7 Nxf3+ 51. Kc2 Kxe4 $15) 50... Kd5 51. Nc3+ (51. Rxg7 Nxf3+ 52. Kc2 Kxe4 $11) 51... Kc5 52. Rf7 (52. Rxg7 Nxf3+ 53. Ke2 Nxh4 $14)) 49... Nf3+ $11 {[%emt 0:02:08]} 50. Kd3 {[%emt 0:01:46]} Nxh4 {[%emt 0:02:14]} 51. Kc4 {[%emt 0:00:19]} Ng2 {[%emt 0:01:52]} 52. Nd5+ {[%emt 0:02:45]} Ke6 {[%emt 0:00:01]} 53. Nc7+ {[%emt 0:00:44]} Kd7 {[%emt 0:01:15]} 54. Nd5+ {[%emt 0:01:26]} Ke6 {[%emt 0:00:18]} 55. Rxg7 {[%emt 0:01:06]} Ra4+ {[%emt 0:00:44]} 56. Kb5 {[%emt 0:00:41]} (56. Kc5 $5 Ra5+ $8 (56... Nxf4 57. Re7#) 57. Kc4 $11) 56... Rxf4 {[%emt 0:01:37]} ({Not} 56... Re4 57. Kc5 (57. Rxg6+ Kxd5 58. f5 Ne3 $11) (57. Rxg6+ Kxd5 58. f5 Nh4 $15)) 57. Nxf4+ {[%emt 0:00:40]} Nxf4 {[%emt 0:00:01]} 58. Rc7 {[%emt 0:00:35]} Kf6 {[%emt 0:01:11]} 59. Rc5 {[%emt 0:00:05]} Nd3 {[%emt 0:00:29]} 60. Rd5 {[%emt 0:00:51]} Ne5 {[%emt 0:02:01]} 61. g5+ {[%emt 0:00:09]} Kf5 $1 {[%emt 0:00:29]} 62. Kc5 {[%emt 0:00:14]} Kf4 $1 {[%emt 0:00:05]} 63. Kd6 {[%emt 0:00:47]} Nf7+ {[%emt 0:00:06]} 64. Ke7 {[%emt 0:00:43]} Nxg5 {[%emt 0:00:02]} 65. Kf6 {[%emt 0:00:10]} Nf3 {[%emt 0:00:17]} 66. Kxg6 {[%emt 0:00:07]} Ke4 {[%emt 0:00:09]} 67. Ra5 {[%emt 0:00:25]} Nd4 {[%emt 0:00:12]} 68. Kf6 {[%emt 0:00:21]} Nc6 {[%emt 0:00:14]} 69. Rc5 {[%emt 0:00:14]} Nd4 {[%emt 0:00:05]} 70. Rc8 {[%emt 0:00:15]} Kd5 {[%emt 0:00:16]} 71. Rd8+ {[%emt 0:00:15]} Ke4 {[%emt 0:00:02]} 72. Rd7 {[%emt 0:00:07]} Nf5 {[%emt 0:00:29]} 73. Rh7 {[%emt 0:00:36]} Nd4 {[%emt 0:00:09]} 74. Rh5 {[%emt 0:00:05]} Nf3 {[%emt 0:00:09]} 75. Rh1 {[%emt 0:02:03]} Nd4 {[%emt 0:00:09]} 76. Rh4+ {[%emt 0:00:17]} Kd5 {[%emt 0:00:06]} 77. Rxd4+ {[%emt 0:02:32]} 1/2-1/2

[Event "7th Summer Cup 2024"]
[Site "Rhodes"]
[Date "2024.06.25"]
[Round "4.3"]
[White "Nasuta, Grzegorz"]
[Black "Stefanova, Antoaneta"]
[Result "1/2-1/2"]
[ECO "C45"]
[WhiteElo "2541"]
[BlackElo "2417"]
[Annotator "TA"]
[PlyCount "44"]
[EventDate "2024.06.21"]
[EventType "swiss"]
[EventCountry "GRE"]
[SourceTitle "playchess.com"]
[Source "ChessBase"]
[SourceQuality "1"]
[TimeControl "40/5400+30:900+30"]

{[%evp 13,44,0,0,0,0,0,7,-31,-18,-9,27,-6,0,0,0,0,1,-9,3,-2,43,44,42,0,0,0,0,0,0,0,0,0,0]} 1. e4 {[%emt 0:01:04]} e5 {[%emt 0:00:03]} 2. Nf3 {[%emt 0:00:07][%cal Bg1f3,Bf3d4,Bd4b5][%mdl 32]} Nc6 {[%emt 0:00:04]} 3. d4 {[%emt 0:00:09]} exd4 {[%emt 0:01:47]} 4. Nxd4 {[%emt 0:00:12]} Qf6 {[%emt 0:01:30]} 5. Nb5 {[%emt 0:00:27]} Bc5 {[%emt 0:08:10]} 6. Qe2 {[%emt 0:00:17]} Bb6 {[%emt 0:05:11]} 7. N1c3 {[%emt 0:00:14]} Nge7 $1 {[%emt 0:00:23]} 8. Be3 {[%emt 0:00:26] [#] Black must now prevent Bxb6.} Ba5 {[%emt 0:00:48] ...a6 is the strong threat.} 9. O-O-O {[%emt 0:00:08] Hoping for Nd5.} a6 {[%emt 0:04:33]} 10. Nd4 {[%emt 0:00:37]} (10. Nd5 {looks sharper.} Nxd5 11. exd5 axb5 12. dxc6 bxc6 13. Bd4+) 10... Bxc3 {[%emt 0:07:37]} 11. bxc3 {[%emt 0:00:14]} b5 {[%emt 0:02:15]} 12. Qd2 {[%emt 0:24:22]} Ne5 {[%emt 0:05:56]} 13. f4 {[%emt 0:37:38]} Nc4 {[%emt 0:00:35]} 14. Bxc4 {[%emt 0:06:45]} bxc4 {[%emt 0:00:02]} 15. Nf3 {[%emt 0:06:11]} O-O {[%emt 0:16:10]} 16. Qd4 $132 {[%emt 0:11:40][%mdl 2048] White is not keeping still} Qxd4 {[%emt 0:04:53]} 17. Rxd4 {[%emt 0:01:17][%cal Bd1d4,Bd4e4,Be4e7][%mdl 32]} ({Much worse is} 17. Nxd4 Bb7 18. Nf3 d6 $15 (18... Bxe4 19. Rxd7 Nd5 20. Bd2 $15)) 17... d5 {[%emt 0:01:15]} 18. exd5 {[%emt 0:02:49][%cal Oe3f2]} Nf5 {[%emt 0:00:50][%csl LRd4,LRe3] The position is equal.} 19. Re4 {[%emt 0:00:01]} Nd6 {[%emt 0:02:40]} 20. Re7 {[%emt 0:01:12]} Nf5 {[%emt 0:00:30]} 21. Re4 {[%emt 0:00:38]} (21. Rxc7 $2 {perishes.} Nxe3 22. d6 Rd8 $19 (22... Nxg2 23. d7 $17) (22... Nd5 $2 23. Rxc4 Rd8 24. Re1 $19)) 21... Nd6 {[%emt 0:02:07]} 22. Re7 {[%emt 0:01:18][%cal Oe3c5] [#] Strongly threatening Bc5!} Nf5 {[%emt 0:00:09] Weighted Error Value: White=0.11 (very precise) /Black=0.09 (flawless) .  Inaccurate:     	White=3     	Black=2      OK:         	White=6     	Black=6      Best:        	---       	Black=4} 1/2-1/2

[Event "7th Summer Cup 2024"]
[Site "Rhodes"]
[Date "2024.06.25"]
[Round "4.4"]
[White "Ladopoulos, Dimitrios"]
[Black "Mostbauer, Florian"]
[Result "1/2-1/2"]
[ECO "C49"]
[WhiteElo "2374"]
[BlackElo "2324"]
[Annotator "RC"]
[PlyCount "55"]
[EventDate "2024.06.21"]
[EventType "swiss"]
[EventCountry "GRE"]
[SourceTitle "playchess.com"]
[Source "ChessBase"]
[SourceQuality "1"]
[TimeControl "40/5400+30:900+30"]

1. e4 {[%emt 0:08:17]} e5 {[%emt 0:02:34]} 2. Nf3 {[%emt 0:00:25]} Nf6 {[%emt 0:00:08]} 3. Nc3 {[%emt 0:01:57]} Nc6 {[%emt 0:00:22]} 4. Bb5 {[%emt 0:00:54]} Bb4 {[%emt 0:00:15]} 5. Bxc6 {[%emt 0:03:00]} dxc6 {[%emt 0:05:30]} 6. d3 {[%emt 0:01:23]} Qe7 {[%emt 0:01:27]} 7. h3 {[%emt 0:01:44]} h6 {[%emt 0:05:23]} 8. Be3 {[%emt 0:07:25]} Bd7 {[%emt 0:09:27]} 9. a3 {[%emt 0:04:51]} Bd6 {[%emt 0:04:16]} 10. Qe2 {[%emt 0:14:22]} O-O-O {[%emt 0:06:18]} 11. Nd2 {[%emt 0:05:51]} Be6 {[%emt 0:12:48]} 12. b4 {[%emt 0:04:32]} Kb8 {[%emt 0:07:22]} 13. Nc4 {[%emt 0:02:51]} Nd7 {[%emt 0:05:25]} 14. Nxd6 {[%emt 0:14:25]} cxd6 {[%emt 0:03:02]} 15. f4 {[%emt 0:00:16]} Qh4+ {[%emt 0:05:03]} 16. Qf2 {[%emt 0:01:25]} Qxf2+ {[%emt 0:00:16]} 17. Kxf2 {[%emt 0:00:05]} f6 {[%emt 0:01:30]} 18. b5 {[%emt 0:04:22]} c5 {[%emt 0:06:02]} 19. Ne2 {[%emt 0:02:48]} g5 {[%emt 0:01:23]} 20. fxe5 {[%emt 0:06:23]} fxe5 {[%emt 0:03:46]} 21. c4 {[%emt 0:00:07]} Rdf8+ {[%emt 0:09:57]} 22. Ke1 {[%emt 0:00:23]} Rf7 {[%emt 0:01:25]} 23. Kd2 {[%emt 0:01:49]} Nf8 {[%emt 0:01:54]} 24. h4 {[%emt 0:06:52]} gxh4 {[%emt 0:00:11]} 25. Rxh4 {[%emt 0:00:07]} h5 {[%emt 0:00:47]} 26. Rah1 {[%emt 0:01:20]} Rg8 {[%emt 0:00:57]} 27. Rxh5 {[%emt 0:02:06]} Rxg2 {[%emt 0:00:13]} 28. R5h2 {[%emt 0:01:10]} 1/2-1/2

[Event "7th Summer Cup 2024"]
[Site "Rhodes"]
[Date "2024.06.25"]
[Round "4.5"]
[White "Ballas, Athanasios-panagioti"]
[Black "Mickiewicz, Piotr"]
[Result "1/2-1/2"]
[ECO "B36"]
[WhiteElo "2151"]
[BlackElo "2257"]
[Annotator "RC"]
[PlyCount "90"]
[EventDate "2024.06.21"]
[EventType "swiss"]
[EventCountry "GRE"]
[SourceTitle "playchess.com"]
[Source "ChessBase"]
[SourceQuality "1"]
[TimeControl "40/5400+30:900+30"]

1. e4 {[%emt 0:00:03]} c5 {[%emt 0:01:48]} 2. Nf3 {[%emt 0:00:09]} Nc6 {[%emt 0:00:19]} 3. d4 {[%emt 0:00:06]} cxd4 {[%emt 0:00:08]} 4. Nxd4 {[%emt 0:00:04]} g6 {[%emt 0:01:19]} 5. c4 {[%emt 0:00:09]} Nf6 {[%emt 0:00:20]} 6. Nc3 {[%emt 0:00:07]} d6 {[%emt 0:00:26]} 7. Be2 {[%emt 0:00:36]} Nxd4 {[%emt 0:00:08]} 8. Qxd4 {[%emt 0:00:05]} Bg7 {[%emt 0:00:10]} 9. Be3 {[%emt 0:01:06]} O-O {[%emt 0:00:21]} 10. Qd2 {[%emt 0:00:18]} a5 {[%emt 0:00:18]} 11. O-O {[%emt 0:04:49]} a4 {[%emt 0:01:43]} 12. Rab1 {[%emt 0:00:33]} Qa5 {[%emt 0:01:46]} 13. Rfc1 {[%emt 0:03:09]} Be6 {[%emt 0:04:40]} 14. f3 {[%emt 0:02:24]} Rfc8 {[%emt 0:01:47]} 15. b4 {[%emt 0:12:04]} axb3 {[%emt 0:02:14]} 16. axb3 {[%emt 0:00:28]} Qb4 {[%emt 0:08:16]} 17. Na4 {[%emt 0:02:18]} Qxd2 {[%emt 0:01:28]} 18. Bxd2 {[%emt 0:00:04]} Nd7 {[%emt 0:01:05]} 19. Be3 {[%emt 0:05:21]} f5 {[%emt 0:24:37]} 20. c5 {[%emt 0:02:52]} dxc5 {[%emt 0:19:12]} 21. Nxc5 {[%emt 0:00:36]} Rxc5 {[%emt 0:10:42]} 22. Rxc5 {[%emt 0:00:29]} f4 {[%emt 0:00:31]} 23. Bf2 {[%emt 0:01:40]} Nxc5 {[%emt 0:00:06]} 24. Bxc5 {[%emt 0:00:05]} Kf7 {[%emt 0:07:07]} 25. Bc4 {[%emt 0:10:58]} Ra2 {[%emt 0:02:19]} 26. Rd1 {[%emt 0:01:03]} b5 {[%emt 0:02:41]} 27. Bxe6+ {[%emt 0:03:32]} Kxe6 {[%emt 0:00:02]} 28. Bd4 {[%emt 0:01:17]} Bxd4+ {[%emt 0:02:32]} 29. Rxd4 {[%emt 0:00:02]} Ra3 {[%emt 0:02:18]} 30. Rb4 {[%emt 0:00:35]} Ra5 {[%emt 0:00:36]} 31. Rd4 {[%emt 0:00:17]} Ra3 {[%emt 0:03:24]} 32. Rb4 {[%emt 0:00:05]} Ra1+ {[%emt 0:00:45]} 33. Kf2 {[%emt 0:00:05]} Ra2+ {[%emt 0:00:02]} 34. Kg1 {[%emt 0:01:01]} Ra1+ {[%emt 0:00:07]} 35. Kf2 {[%emt 0:00:02]} Ra2+ {[%emt 0:00:09]} 36. Kg1 {[%emt 0:00:27]} Ra5 {[%emt 0:00:35]} 37. Rd4 {[%emt 0:00:18]} Kf6 {[%emt 0:01:03]} 38. Rd5 {[%emt 0:00:27]} e6 {[%emt 0:00:21]} 39. Rc5 {[%emt 0:00:08]} g5 {[%emt 0:01:16]} 40. h3 {[%emt 0:00:00]} h5 {[%emt 0:00:00]} 41. b4 {[%emt 0:01:50]} Ra1+ {[%emt 0:02:47]} 42. Kh2 {[%emt 0:00:12]} Ra2 {[%emt 0:00:29]} 43. Kg1 {[%emt 0:03:02]} Ra1+ {[%emt 0:08:01]} 44. Kh2 {[%emt 0:01:07]} Ra2 {[%emt 0:03:06]} 45. Kg1 {[%emt 0:01:54]} Ra1+ {[%emt 0:01:54]} 1/2-1/2

[Event "7th Summer Cup 2024"]
[Site "Rhodes"]
[Date "2024.06.25"]
[Round "4.6"]
[White "Sandalakis, Nikolaos"]
[Black "Grapsa, Georgia"]
[Result "1/2-1/2"]
[ECO "B44"]
[WhiteElo "2229"]
[BlackElo "1979"]
[Annotator "RC"]
[PlyCount "91"]
[EventDate "2024.06.21"]
[EventType "swiss"]
[EventCountry "GRE"]
[SourceTitle "playchess.com"]
[Source "ChessBase"]
[SourceQuality "1"]
[TimeControl "40/5400+30:900+30"]

1. e4 {[%emt 0:00:05]} c5 {[%emt 0:00:08]} 2. Nf3 {[%emt 0:00:12]} e6 {[%emt 0:00:05]} 3. d4 {[%emt 0:01:22]} cxd4 {[%emt 0:00:06]} 4. Nxd4 {[%emt 0:00:05]} Nc6 {[%emt 0:00:03]} 5. Nb5 {[%emt 0:00:25]} d6 {[%emt 0:01:51]} 6. c4 {[%emt 0:00:14]} a6 {[%emt 0:00:26]} 7. N5c3 {[%emt 0:03:56]} Nf6 {[%emt 0:05:05]} 8. Be2 {[%emt 0:01:29]} Bd7 {[%emt 0:02:16]} 9. O-O {[%emt 0:01:56]} Be7 {[%emt 0:01:23]} 10. Be3 {[%emt 0:02:08]} O-O {[%emt 0:01:22]} 11. Nd2 {[%emt 0:01:33]} Rb8 {[%emt 0:09:21]} 12. f4 {[%emt 0:07:01]} Re8 {[%emt 0:11:52]} 13. Rc1 {[%emt 0:11:01]} d5 {[%emt 0:06:00]} 14. exd5 {[%emt 0:29:47]} exd5 {[%emt 0:00:06]} 15. cxd5 {[%emt 0:00:21]} Nb4 {[%emt 0:01:28]} 16. Nc4 {[%emt 0:05:05]} Bb5 {[%emt 0:07:37]} 17. Bb6 {[%emt 0:12:24]} Qd7 {[%emt 0:04:21]} 18. Ba7 {[%emt 0:03:09]} Bxc4 {[%emt 0:11:51]} 19. Bxc4 {[%emt 0:00:38]} Rbc8 {[%emt 0:11:55]} 20. Bb3 {[%emt 0:01:54]} b5 {[%emt 0:02:13]} 21. Bf2 {[%emt 0:05:00]} Rcd8 {[%emt 0:03:50]} 22. Bb6 {[%emt 0:00:31]} Rb8 {[%emt 0:00:56]} 23. Bd4 {[%emt 0:03:30]} Nbxd5 {[%emt 0:05:41]} 24. Nxd5 {[%emt 0:01:51]} Nxd5 {[%emt 0:00:05]} 25. Qh5 {[%emt 0:03:14]} Bf6 {[%emt 0:05:49]} 26. Rcd1 {[%emt 0:01:57]} Bxd4+ {[%emt 0:01:24]} 27. Rxd4 {[%emt 0:00:06]} Qa7 {[%emt 0:00:14]} 28. Qxd5 {[%emt 0:00:47]} Rbd8 {[%emt 0:00:31]} 29. Qxf7+ {[%emt 0:00:21]} Qxf7 {[%emt 0:00:07]} 30. Bxf7+ {[%emt 0:01:14]} Kxf7 {[%emt 0:00:04]} 31. Rxd8 {[%emt 0:01:41]} Rxd8 {[%emt 0:00:04]} 32. g4 {[%emt 0:00:51]} Kf6 {[%emt 0:01:00]} 33. Kg2 {[%emt 0:00:34]} h5 {[%emt 0:01:39]} 34. gxh5 {[%emt 0:00:34]} Kf5 {[%emt 0:01:10]} 35. Kg3 {[%emt 0:00:29]} Rd2 {[%emt 0:00:40]} 36. Re1 {[%emt 0:00:32]} Rxb2 {[%emt 0:01:40]} 37. Re5+ {[%emt 0:00:17]} Kf6 {[%emt 0:00:05]} 38. a4 {[%emt 0:00:13]} Rb3+ {[%emt 0:00:45]} 39. Kg4 {[%emt 0:00:11]} Rb1 {[%emt 0:02:27]} 40. Rf5+ {[%emt 0:00:00]} Ke6 {[%emt 0:00:00]} 41. Re5+ {[%emt 0:01:26]} Kf6 {[%emt 0:04:02]} 42. Rc5 {[%emt 0:06:47]} Rg1+ {[%emt 0:01:18]} 43. Kf3 {[%emt 0:00:05]} bxa4 {[%emt 0:02:08]} 44. Ra5 {[%emt 0:00:24]} Rf1+ {[%emt 0:00:46]} 45. Kg4 {[%emt 0:00:23]} Rg1+ {[%emt 0:00:05]} 46. Kf3 {[%emt 0:00:14]} 1/2-1/2

[Event "7th Summer Cup 2024"]
[Site "Rhodes"]
[Date "2024.06.25"]
[Round "4.7"]
[White "Witczak, Borys"]
[Black "Gelle, Istvan"]
[Result "0-1"]
[ECO "D10"]
[WhiteElo "1937"]
[BlackElo "2163"]
[Annotator "RC"]
[PlyCount "90"]
[EventDate "2024.06.21"]
[EventType "swiss"]
[EventCountry "GRE"]
[SourceTitle "playchess.com"]
[Source "ChessBase"]
[SourceQuality "1"]
[TimeControl "40/5400+30:900+30"]

1. d4 {[%emt 0:00:04]} d5 {[%emt 0:00:06]} 2. c4 {[%emt 0:00:05]} c6 {[%emt 0:00:05]} 3. cxd5 {[%emt 0:00:09]} cxd5 {[%emt 0:00:07]} 4. Bf4 {[%emt 0:00:34]} Nc6 {[%emt 0:00:10]} 5. e3 {[%emt 0:00:05]} Bf5 {[%emt 0:06:10]} 6. Nc3 {[%emt 0:01:52]} e6 {[%emt 0:00:34]} 7. Qb3 {[%emt 0:00:45]} Qd7 {[%emt 0:05:20]} 8. Nf3 {[%emt 0:00:13]} a6 {[%emt 0:06:29]} 9. Ne5 {[%emt 0:07:06]} Nxe5 {[%emt 0:01:06]} 10. Bxe5 {[%emt 0:00:13]} f6 {[%emt 0:03:54]} 11. Bg3 {[%emt 0:01:23]} h5 {[%emt 0:09:21]} 12. h4 {[%emt 0:00:43]} Ne7 {[%emt 0:10:21]} 13. Na4 {[%emt 0:01:14]} Qc6 {[%emt 0:21:14]} 14. Nc5 {[%emt 0:03:07]} Ra7 {[%emt 0:05:54]} 15. Kd2 {[%emt 0:07:32]} Kf7 {[%emt 0:04:47]} 16. Rc1 {[%emt 0:00:33]} b5 {[%emt 0:01:38]} 17. a4 {[%emt 0:02:36]} bxa4 {[%emt 0:02:51]} 18. Qb8 {[%emt 0:01:44]} Ra8 {[%emt 0:01:10]} 19. Qd6 {[%emt 0:07:47]} Rc8 {[%emt 0:09:31]} 20. Bxa6 {[%emt 0:04:33]} Qxd6 {[%emt 0:01:47]} 21. Bxd6 {[%emt 0:00:30]} Rc6 {[%emt 0:00:24]} 22. Bxe7 {[%emt 0:04:16]} Bxe7 {[%emt 0:00:11]} 23. Bd3 {[%emt 0:00:04]} Bxc5 {[%emt 0:04:38]} 24. Rxc5 {[%emt 0:00:21]} Rxc5 {[%emt 0:00:33]} 25. dxc5 {[%emt 0:00:05]} Bxd3 {[%emt 0:01:07]} 26. Kxd3 {[%emt 0:00:01]} Rb8 {[%emt 0:00:38]} 27. Rc1 {[%emt 0:01:07]} Rxb2 {[%emt 0:00:35]} 28. c6 {[%emt 0:00:06]} Rb8 {[%emt 0:00:25]} 29. Kd4 {[%emt 0:00:05]} Ke7 {[%emt 0:00:55]} 30. Kc5 {[%emt 0:00:07]} Rb3 {[%emt 0:00:53]} 31. e4 {[%emt 0:02:43]} dxe4 {[%emt 0:01:10]} 32. Re1 {[%emt 0:03:23]} f5 {[%emt 0:00:34]} 33. Rd1 {[%emt 0:00:31]} a3 {[%emt 0:00:55]} 34. c7 {[%emt 0:06:33]} a2 {[%emt 0:01:04]} 35. Kc6 {[%emt 0:02:22]} f4 {[%emt 0:00:36]} 36. c8=Q {[%emt 0:03:36]} Rc3+ {[%emt 0:00:21]} 37. Kb7 {[%emt 0:00:07]} Rxc8 {[%emt 0:00:27]} 38. Kxc8 {[%emt 0:00:02]} e3 {[%emt 0:00:24]} 39. Kc7 {[%emt 0:00:07]} exf2 {[%emt 0:00:31]} 40. Kc6 {[%emt 0:00:00]} Kf6 {[%emt 0:00:00]} 41. Kc5 {[%emt 0:01:12]} Ke5 {[%emt 0:04:41]} 42. Kc4 {[%emt 0:01:14]} Ke4 {[%emt 0:00:19]} 43. Kc3 {[%emt 0:00:04]} Ke3 {[%emt 0:00:35]} 44. Kc2 {[%emt 0:00:02]} Ke2 {[%emt 0:01:22]} 45. Rd2+ {[%emt 0:00:04]} Kf1 {[%emt 0:00:27]} 0-1